bitfinex/quotes_BTCUSD_20250314
["timestamp","ask_amount","ask_price","bid_price","bid_amount"]
[1741975479798,1.9e-07,84749.0,84748.0,0.259792]
[1741975480228,1.9e-07,84749.0,84748.0,0.247792]
[1741975480631,1.9e-07,84749.0,84748.0,0.253792]
[1741975481669,1.9e-07,84749.0,84748.0,0.259792]
[1741975484791,0.02213053,84765.0,84764.0,0.252746]
[1741975485408,0.02213053,84765.0,84764.0,0.256746]
[1741975485842,0.02213053,84765.0,84764.0,0.252746]
[1741975486250,0.02213053,84765.0,84764.0,0.256746]
[1741975486466,0.02213053,84765.0,84764.0,0.251746]
[1741975487199,0.02213053,84765.0,84764.0,0.250746]
[1741975487866,0.04062807,84765.0,84764.0,0.250746]
[1741975488067,0.04062807,84765.0,84764.0,0.253746]
[1741975488493,0.04062807,84765.0,84764.0,0.250746]
[1741975488897,0.04062807,84765.0,84764.0,0.253746]
[1741975489410,0.04062807,84765.0,84764.0,0.250746]
[1741975489754,0.04062807,84765.0,84764.0,0.253746]
[1741975490241,0.04062807,84765.0,84764.0,0.256746]
[1741975493457,0.04062807,84765.0,84764.0,0.009]
[1741975493700,0.64735905,84765.0,84764.0,0.009]
[1741975493975,0.58837107,84765.0,84764.0,0.009]
[1741975494187,6.20784492,84765.0,84764.0,0.009]
[1741975494620,6.20784492,84765.0,84750.0,0.0003392]
[1741975494621,0.547784,84751.0,84750.0,0.0003392]
[1741975494822,0.961684,84751.0,84750.0,0.0003392]
[1741975496542,0.98374412,84751.0,84750.0,0.0003392]
[1741975500587,6.09177185,84746.0,84745.0,0.000339]
[1741975500794,6.17207185,84746.0,84745.0,0.000339]
[1741975501569,6.19413197,84746.0,84745.0,0.000339]
[1741975501928,6.19713197,84746.0,84745.0,0.000339]
[1741975502138,6.19413197,84746.0,84745.0,0.000339]
[1741975502272,6.19713197,84746.0,84745.0,0.000339]
[1741975502469,6.20213197,84746.0,84745.0,0.000339]
[1741975502708,6.19913197,84746.0,84745.0,0.000339]
[1741975503077,6.323707,84746.0,84745.0,0.000339]
[1741975504098,6.18959112,84746.0,84745.0,0.000339]
[1741975504347,6.20413197,84746.0,84745.0,0.000339]
[1741975505201,6.21308438,84746.0,84745.0,0.000339]
[1741975505955,6.96268438,84746.0,84745.0,0.000339]
[1741975506130,4.56835138,84746.0,84745.0,0.000339]
[1741975506273,3.83295138,84746.0,84745.0,0.000339]
[1741975506477,3.65745138,84746.0,84745.0,0.000339]
[1741975506676,3.64095138,84746.0,84745.0,0.000339]
[1741975507085,1.85215138,84746.0,84745.0,0.000339]
[1741975507337,6.01995138,84746.0,84745.0,0.000339]
[1741975507587,5.76615138,84746.0,84745.0,0.000339]
[1741975508012,5.88572641,84746.0,84745.0,0.000339]
[1741975508347,4.25685138,84746.0,84745.0,0.000339]
[1741975508506,3.79095138,84746.0,84745.0,0.000339]
[1741975508705,3.53138942,84746.0,84745.0,0.000339]
[1741975509086,0.44596012,84746.0,84745.0,0.248141]
[1741975509287,0.44596012,84746.0,84745.0,0.236341]
[1741975509936,0.44596012,84746.0,84745.0,0.248141]
[1741975510617,0.03206012,84746.0,84745.0,0.331241]
[1741975510937,0.02706012,84746.0,84745.0,0.331241]
[1741975511273,0.03106012,84746.0,84745.0,0.331241]
[1741975511479,0.009,84746.0,84745.0,0.331241]
[1741975511909,0.004,84746.0,84745.0,0.331241]
[1741975512081,0.02250169,84746.0,84745.0,0.331241]
[1741975512689,0.02750169,84746.0,84745.0,0.331241]
[1741975513498,0.02750169,84746.0,84745.0,0.000339]
[1741975513499,0.32750169,84746.0,84745.0,0.000339]
[1741975513663,0.56350069,84746.0,84745.0,0.000339]
[1741975513861,0.57529969,84746.0,84745.0,0.000339]
[1741975514552,0.556798,84746.0,84745.0,0.000339]
[1741975515375,0.57881201,84746.0,84745.0,0.000339]
[1741975515550,0.6023473,84746.0,84745.0,0.000339]
[1741975516589,0.6023473,84746.0,84741.0,0.00012442]
[1741975516590,0.54781,84742.0,84741.0,0.00012442]
[1741975517583,0.56631671,84742.0,84741.0,0.00012442]
[1741975517759,0.32150671,84742.0,84741.0,0.00012442]
[1741975518190,0.34352072,84742.0,84741.0,0.23613742]
[1741975518397,0.34352072,84742.0,84741.0,0.24793742]
[1741975518594,0.34352072,84742.0,84741.0,0.23613742]
[1741975518800,0.34352072,84742.0,84741.0,0.00012442]
[1741975518801,0.34652072,84742.0,84741.0,0.00012442]
[1741975519004,0.58253072,84742.0,84741.0,0.00012442]
[1741975519434,0.59433072,84742.0,84741.0,0.00012442]
[1741975521553,0.57231671,84742.0,84741.0,0.00012442]
[1741975521977,0.59438336,84742.0,84741.0,0.00012442]
[1741975523561,1.00828336,84742.0,84741.0,0.00012442]
[1741975526132,0.46047336,84742.0,84741.0,0.24793742]
[1741975526505,0.44196665,84742.0,84741.0,0.23613742]
[1741975526825,0.74196665,84742.0,84741.0,0.23613742]
[1741975527032,0.97797665,84742.0,84741.0,0.00012442]
[1741975527179,0.73896665,84742.0,84741.0,0.00012442]
[1741975527734,0.74096665,84742.0,84741.0,0.23613742]
[1741975527875,0.7159,84742.0,84741.0,0.23613742]
[1741975528081,0.7179,84742.0,84741.0,0.24793742]
[1741975528586,0.7179,84742.0,84741.0,0.23613742]
[1741975528912,0.73999136,84742.0,84741.0,0.00012442]
[1741975529118,0.73999136,84742.0,84741.0,0.00046362]
[1741975529341,0.75849512,84742.0,84741.0,0.00046362]
[1741975529955,0.99450512,84742.0,84741.0,0.00046362]
[1741975530325,0.75849512,84742.0,84741.0,0.23647662]
[1741975530524,0.75849512,84742.0,84741.0,0.24827662]
[1741975531545,1.00630512,84742.0,84741.0,0.00046362]
[1741975532650,6.19333812,84742.0,84741.0,0.00046362]
[1741975533086,6.27895897,84742.0,84741.0,0.00046362]
[1741975533296,6.32805897,84742.0,84741.0,0.00046362]
[1741975533791,1.72132597,84742.0,84741.0,2.362e-05]
[1741975533999,1.65382597,84742.0,84741.0,2.362e-05]
[1741975534193,1.65182597,84742.0,84741.0,2.362e-05]
[1741975534407,1.65482597,84742.0,84741.0,2.362e-05]
[1741975534838,1.64982597,84742.0,84741.0,2.362e-05]
[1741975535048,1.65782597,84742.0,84741.0,2.362e-05]
[1741975535621,1.65482597,84742.0,84741.0,2.362e-05]
[1741975535864,1.65982597,84742.0,84741.0,2.362e-05]
[1741975536310,1.70402919,84742.0,84741.0,2.362e-05]
[1741975536508,1.07104919,84742.0,84741.0,2.362e-05]
[1741975536915,1.20784919,84742.0,84741.0,2.362e-05]
[1741975537322,1.14155461,84742.0,84741.0,2.362e-05]
[1741975538946,1.1636497,84742.0,84741.0,2.362e-05]
[1741975539735,6.39375773,84742.0,84741.0,2.362e-05]
[1741975539933,6.3452627,84742.0,84741.0,2.362e-05]
[1741975542164,6.41155728,84742.0,84741.0,2.362e-05]
[1741975543192,6.42265192,84742.0,84741.0,2.362e-05]
[1741975543561,2.13441892,84742.0,84741.0,2.362e-05]
[1741975543768,1.73031892,84742.0,84741.0,2.362e-05]
[1741975544112,1.31211892,84742.0,84741.0,2.362e-05]
[1741975544307,1.91671892,84742.0,84741.0,2.362e-05]
[1741975544465,0.3,84725.0,84721.0,0.236067]
[1741975544674,0.1368,84725.0,84721.0,0.236067]
[1741975544871,0.1368,84725.0,84722.0,0.236066]
[1741975545072,0.4368,84725.0,84723.0,0.236063]
[1741975545257,0.45530838,84725.0,84723.0,0.236063]
[1741975545623,0.31850838,84725.0,84722.0,0.236065]
[1741975545830,0.02209509,84724.0,84722.0,0.236065]
[1741975546174,0.3,84723.0,84721.0,0.236063]
[1741975546369,0.536064,84723.0,84721.0,0.236063]
[1741975546574,0.3,84713.0,84709.0,0.236099]
[1741975546826,0.3,84709.0,84706.0,0.0811]
[1741975547169,0.011806,84698.0,84692.0,0.236149]
[1741975547374,0.311806,84701.0,84691.0,0.011807]
[1741975547572,0.547936,84701.0,84697.0,0.236135]
[1741975547746,0.547936,84701.0,84691.0,0.011807]
[1741975547747,0.3,84696.0,84693.0,0.236144]
[1741975547948,0.536139,84696.0,84692.0,0.236149]
[1741975548212,0.3,84696.0,84695.0,0.247948]
[1741975548818,0.3,84703.0,84702.0,0.236121]
[1741975549777,0.32413699,84709.0,84708.0,0.24791]
[1741975550020,0.01438967,84713.0,84710.0,0.247903]
[1741975550214,0.01438967,84713.0,84710.0,0.373403]
[1741975550642,0.01851004,84711.0,84710.0,0.373403]
[1741975550848,0.01851004,84711.0,84710.0,0.372403]
[1741975551189,0.04059563,84711.0,84710.0,0.372403]
[1741975551337,6.3e-07,84711.0,84710.0,0.372403]
[1741975551767,0.01850907,84711.0,84710.0,0.372403]
[1741975552724,0.01950907,84711.0,84710.0,0.372403]
[1741975553841,0.02050907,84711.0,84710.0,0.373403]
[1741975554377,0.02050907,84711.0,84710.0,0.3737422]
[1741975554810,0.00200063,84711.0,84710.0,0.3737422]
[1741975555360,6.3e-07,84711.0,84710.0,0.3737422]
[1741975555561,0.0001696,84741.0,84740.0,0.247816]
[1741975555936,0.01391905,84741.0,84739.0,0.236018]
[1741975556145,0.0001696,84741.0,84739.0,0.236018]
[1741975556342,0.0001696,84741.0,84738.0,0.236021]
[1741975556545,0.3,84740.0,84739.0,0.236018]
[1741975556748,0.3,84740.0,84739.0,0.246818]
[1741975556946,0.30012426,84740.0,84739.0,0.246818]
[1741975557105,0.00012426,84740.0,84739.0,0.246818]
[1741975557738,0.236018,84739.0,84735.0,0.0764]
[1741975557953,0.01862738,84740.0,84734.0,0.011801]
[1741975558173,0.01862738,84740.0,84737.0,0.236024]
[1741975560541,0.01862738,84740.0,84739.0,0.373318]
[1741975561610,0.01862738,84740.0,84739.0,0.377318]
[1741975561823,0.01862738,84740.0,84739.0,0.373318]
[1741975562228,0.01862738,84740.0,84739.0,0.377318]
[1741975563056,0.01862738,84740.0,84739.0,0.382318]
[1741975563293,5.8e-07,84745.0,84741.0,0.247813]
[1741975563501,5.8e-07,84745.0,84744.0,0.330804]
[1741975564336,0.0001696,84746.0,84744.0,0.330804]
[1741975564337,1.8e-07,84746.0,84745.0,0.0118]
[1741975565012,1.8e-07,84746.0,84745.0,0.247802]
[1741975565842,1.8e-07,84746.0,84745.0,0.251802]
[1741975566872,1.8e-07,84746.0,84745.0,0.256802]
[1741975567703,1.8e-07,84746.0,84745.0,0.252802]
[1741975568103,0.01849979,84746.0,84745.0,0.256802]
[1741975571291,7.041e-05,84765.0,84749.0,0.324789]
[1741975571292,3.9e-07,84750.0,84749.0,0.324789]
[1741975571514,3.9e-07,84750.0,84749.0,0.462029]
[1741975572484,0.3,84766.0,84764.0,0.235946]
[1741975572670,0.3,84768.0,84765.0,0.235943]
[1741975572864,0.3,84768.0,84767.0,0.23594]
[1741975573307,0.3,84768.0,84767.0,0.247737]
[1741975573904,0.3,84774.0,84771.0,0.235928]
[1741975574080,0.535918,84775.0,84771.0,0.235928]
[1741975574282,0.535918,84775.0,84768.0,0.235938]
[1741975574283,0.3,84775.0,84774.0,0.247717]
[1741975574424,0.3,84775.0,84774.0,0.246717]
[1741975574831,0.31849745,84775.0,84774.0,0.246717]
[1741975575059,0.31849745,84775.0,84774.0,0.235921]
[1741975575452,0.32149745,84775.0,84774.0,0.247717]
[1741975576619,0.37863032,84775.0,84774.0,0.235921]
[1741975577606,0.36013287,84775.0,84774.0,0.235921]
[1741975578209,0.36013287,84775.0,84774.0,0.247717]
[1741975579652,0.36030247,84775.0,84774.0,0.247717]
[1741975580450,0.37879934,84775.0,84774.0,0.247717]
[1741975582430,0.37579934,84775.0,84774.0,0.247717]
[1741975583888,0.37579934,84775.0,84771.0,0.235929]
[1741975584207,0.07579934,84775.0,84768.0,0.011796]
[1741975584414,0.37579934,84775.0,84774.0,0.247717]
[1741975587015,0.37579934,84775.0,84774.0,0.375317]
[1741975587203,0.35730247,84775.0,84774.0,0.375317]
[1741975588341,0.35730247,84775.0,84774.0,0.377317]
[1741975589138,7.9e-07,84789.0,84786.0,0.0775]
[1741975589325,0.01378324,84789.0,84788.0,0.247676]
[1741975589524,7.9e-07,84789.0,84788.0,0.247676]
[1741975589722,3.9e-07,84794.0,84793.0,0.247661]
[1741975590307,6.1e-07,84794.0,84793.0,0.247661]
[1741975590502,0.0001696,84816.0,84815.0,0.235807]
[1741975590723,0.0701696,84816.0,84815.0,0.235807]
[1741975591111,0.01865884,84816.0,84815.0,0.235807]
[1741975591725,0.03253392,84816.0,84815.0,0.235807]
[1741975591933,0.03844408,84816.0,84811.0,0.247607]
[1741975592138,0.03844408,84816.0,84813.0,0.235812]
[1741975592880,0.3,84812.0,84805.0,0.247623]
[1741975593037,0.3,84812.0,84808.0,0.235824]
[1741975593249,0.3,84812.0,84810.0,0.235821]
[1741975593695,0.3,84812.0,84810.0,0.247612]
[1741975593920,0.3,84812.0,84811.0,0.01179]
[1741975594865,0.00751675,84814.0,84812.0,0.235815]
[1741975595068,0.01342691,84812.0,84804.0,0.011791]
[1741975595317,0.011792,84798.0,84786.0,0.011794]
[1741975595518,0.011792,84798.0,84779.0,0.0499]
[1741975595519,0.011794,84786.0,84781.0,0.235899]
[1741975595720,0.3,84787.0,84782.0,0.011794]
[1741975595927,0.011793,84792.0,84782.0,0.011794]
[1741975596124,0.3,84791.0,84783.0,0.235896]
[1741975596327,0.311793,84789.0,84783.0,0.235896]
[1741975596737,0.3,84781.0,84774.0,0.012135]
[1741975596936,0.3,84781.0,84774.0,0.236258]
[1741975596937,0.235907,84780.0,84774.0,0.236258]
[1741975597142,0.3,84779.0,84774.0,0.236258]
[1741975597800,0.011795,84776.0,84774.0,0.000339]
[1741975598020,0.311795,84775.0,84774.0,0.000339]
[1741975598427,0.3,84775.0,84774.0,0.003339]
[1741975598710,0.3,84775.0,84774.0,0.000339]
[1741975598847,0.3,84775.0,84774.0,0.012135]
[1741975599212,0.01330164,84775.0,84774.0,0.003339]
[1741975599628,0.04657788,84775.0,84774.0,0.015135]
[1741975599831,0.04657788,84775.0,84774.0,0.012135]
[1741975600032,0.04857788,84775.0,84774.0,0.012135]
[1741975600380,0.05057788,84775.0,84774.0,0.012135]
[1741975600787,0.08582607,84775.0,84773.0,0.16968033]
[1741975600987,0.08582607,84775.0,84774.0,0.011796]
[1741975601426,0.10785566,84775.0,84774.0,0.011796]
[1741975601637,0.10785566,84775.0,84773.0,0.16968033]
[1741975601840,0.10585566,84775.0,84773.0,0.18147633]
[1741975602456,0.10685566,84775.0,84773.0,0.18147633]
[1741975602905,0.3,84770.0,84762.0,0.235952]
[1741975603106,0.3,84766.0,84759.0,0.24776]
[1741975603301,0.011796,84769.0,84763.0,0.235951]
[1741975603302,0.3,84768.0,84763.0,0.235951]
[1741975603506,0.311796,84771.0,84763.0,0.011797]
[1741975603757,0.3,84769.0,84766.0,0.235943]
[1741975603964,0.01849719,84767.0,84765.0,0.235945]
[1741975604134,0.01849719,84767.0,84765.0,0.247742]
[1741975604827,0.01849719,84767.0,84766.0,0.011797]
[1741975605189,0.01849719,84767.0,84765.0,0.247742]
[1741975605574,0.00591016,84766.0,84765.0,0.247742]
[1741975605772,0.06318794,84766.0,84765.0,0.247742]
[1741975605974,0.06318794,84766.0,84762.0,0.235952]
[1741975606195,0.06318794,84766.0,84764.0,0.235948]
[1741975606389,0.06318794,84766.0,84765.0,0.011797]
[1741975606635,0.05727778,84766.0,84765.0,0.011797]
[1741975608318,0.06319054,84766.0,84765.0,0.011797]
[1741975608523,0.02794235,84766.0,84765.0,0.011797]
[1741975610033,0.02202959,84766.0,84765.0,0.011797]
[1741975610638,5.9e-07,84766.0,84765.0,0.011797]
[1741975610864,5.9e-07,84766.0,84765.0,0.1414766]
[1741975611129,0.01352886,84779.0,84778.0,0.011795]
[1741975611332,0.01352886,84779.0,84778.0,0.247705]
[1741975611506,0.13992,84791.0,84790.0,0.235876]
[1741975611833,0.43992,84791.0,84790.0,0.235876]
[1741975612040,0.453487,84791.0,84790.0,0.235876]
[1741975612213,0.03206075,84791.0,84790.0,0.247669]
[1741975612417,0.03206075,84791.0,84790.0,0.235876]
[1741975612571,0.235892,84785.0,84778.0,0.003]
[1741975612773,0.30118041,84784.0,84778.0,0.003]
[1741975613017,0.547702,84779.0,84778.0,0.003]
[1741975613666,0.3,84765.0,84763.0,0.235951]
[1741975614128,0.3,84765.0,84764.0,0.011797]
[1741975614325,0.3,84765.0,84761.0,0.247748]
[1741975614529,0.3,84765.0,84762.0,0.235954]
[1741975614734,0.535947,84765.0,84762.0,0.235953]
[1741975614933,0.3,84765.0,84763.0,0.23595]
[1741975615216,0.31849866,84765.0,84763.0,0.23595]
[1741975615375,0.01849866,84765.0,84764.0,0.004]
[1741975615531,0.01849866,84765.0,84764.0,0.015797]
[1741975615731,0.01849866,84765.0,84764.0,0.011797]
[1741975616382,0.01849866,84765.0,84764.0,0.247746]
[1741975617026,0.01849866,84765.0,84764.0,0.252746]
[1741975617681,0.01849866,84765.0,84764.0,0.256746]
[1741975618054,0.01849866,84765.0,84764.0,0.332846]
[1741975618429,0.0001695,84773.0,84772.0,0.247722]
[1741975620730,0.0001695,84773.0,84772.0,0.250722]
[1741975621115,0.3001695,84773.0,84772.0,0.238926]
[1741975621272,0.31866474,84773.0,84772.0,0.005]
[1741975621885,0.56638474,84773.0,84772.0,0.005]
[1741975622900,0.31866474,84773.0,84772.0,0.002]
[1741975623096,0.56638474,84773.0,84772.0,0.002]
[1741975623302,0.56738474,84773.0,84772.0,0.002]
[1741975624601,0.3,84767.0,84765.0,0.235943]
[1741975625021,0.535943,84767.0,84763.0,0.000339]
[1741975625222,0.547746,84764.0,84763.0,0.000339]
[1741975626048,0.56624548,84764.0,84763.0,0.000339]
[1741975626938,0.547746,84764.0,84763.0,0.000339]
[1741975627163,0.3,84763.0,84739.0,0.0003392]
[1741975627374,0.3,84740.0,84739.0,0.0003392]
[1741975627587,0.3,84740.0,84739.0,0.0121392]
[1741975627735,0.3,84740.0,84739.0,0.2481572]
[1741975628346,0.32313431,84749.0,84747.0,0.235995]
[1741975628775,0.33680843,84749.0,84747.0,0.235995]
[1741975628933,0.33680843,84749.0,84746.0,0.235997]
[1741975629433,0.03680843,84749.0,84747.0,0.235996]
[1741975629638,0.04163678,84749.0,84744.0,0.236002]
[1741975629842,0.05699483,84749.0,84744.0,0.0118]
[1741975630090,0.011799,84747.0,84743.0,0.236007]
[1741975630298,0.311799,84747.0,84744.0,0.236003]
[1741975630472,0.3,84747.0,84744.0,0.236002]
[1741975630679,0.3,84747.0,84746.0,0.235997]
[1741975630876,0.3,84747.0,84746.0,0.247796]
[1741975631080,0.03286052,84749.0,84746.0,0.247796]
[1741975631277,0.03286052,84749.0,84748.0,0.247792]
[1741975631496,0.03486052,84749.0,84748.0,0.247792]
[1741975631761,0.01950247,84749.0,84748.0,0.247792]
[1741975631961,4.7e-07,84749.0,84748.0,0.293692]
[1741975632171,4.7e-07,84749.0,84748.0,0.292692]
[1741975632382,0.27271335,84780.0,84772.0,0.247722]
[1741975632715,0.011795,84778.0,84769.0,0.011796]
[1741975632928,0.3,84770.0,84767.0,0.235939]
[1741975633138,0.31359533,84770.0,84767.0,0.235939]
[1741975633339,0.01359533,84770.0,84767.0,0.235939]
[1741975633598,0.01359533,84770.0,84766.0,0.247735]
[1741975633599,0.235938,84768.0,84763.0,0.011797]
[1741975633798,0.235938,84768.0,84765.0,0.235946]
[1741975634029,0.3,84767.0,84766.0,0.235943]
[1741975634240,0.01363894,84770.0,84766.0,0.235943]
[1741975634241,0.01363894,84770.0,84769.0,0.247731]
[1741975634650,0.0001695,84773.0,84772.0,0.247722]
[1741975634857,0.01311881,84773.0,84772.0,0.247722]
[1741975635238,0.0001695,84773.0,84772.0,0.247722]
[1741975636492,0.0011695,84773.0,84772.0,0.247722]
[1741975636893,0.01351203,84774.0,84772.0,0.247722]
[1741975637096,0.02370002,84789.0,84782.0,0.247693]
[1741975637354,0.02370002,84789.0,84770.0,0.235932]
[1741975637355,0.27299335,84800.0,84794.0,0.235865]
[1741975637556,0.011792,84799.0,84790.0,0.235876]
[1741975637667,0.247656,84795.0,84790.0,0.235876]
[1741975637871,0.011793,84790.0,84782.0,0.235899]
[1741975638072,0.011795,84781.0,84769.0,0.152676]
[1741975638308,0.13219335,84780.0,84778.0,0.235909]
[1741975638527,0.235911,84778.0,84774.0,0.235921]
[1741975638703,0.235911,84778.0,84775.0,0.235917]
[1741975639164,0.235901,84782.0,84778.0,0.235909]
[1741975639364,0.01849627,84778.0,84775.0,0.235918]
[1741975639692,0.235917,84776.0,84773.0,0.235924]
[1741975639834,0.235913,84777.0,84773.0,0.235924]
[1741975640173,0.247704,84779.0,84774.0,0.23592]
[1741975640373,0.01849667,84777.0,84774.0,0.23592]
[1741975640599,0.01849667,84777.0,84775.0,0.235916]
[1741975640775,0.01849667,84777.0,84774.0,0.23592]
[1741975640977,0.01849667,84777.0,84775.0,0.235918]
[1741975642258,0.01849667,84777.0,84774.0,0.235918]
[1741975642593,0.011796,84773.0,84769.0,0.235932]
[1741975642844,0.235918,84775.0,84769.0,0.235932]
[1741975643049,0.235918,84775.0,84766.0,0.0121362]
[1741975643050,0.247737,84767.0,84766.0,0.0003392]
[1741975643873,0.26623637,84767.0,84766.0,0.0003392]
[1741975644324,0.66287722,84767.0,84766.0,0.0003392]
[1741975644529,2.53075061,84767.0,84766.0,0.0003392]
[1741975644741,3.06219995,84767.0,84766.0,0.0003392]
[1741975644953,3.11189995,84767.0,84766.0,0.0003392]
[1741975645165,3.11706325,84767.0,84766.0,0.0003392]
[1741975645339,3.12006325,84767.0,84766.0,0.0003392]
[1741975645582,2.47923053,84767.0,84766.0,0.0003392]
[1741975645792,1.75094554,84767.0,84766.0,0.0003392]
[1741975646196,1.78620624,84767.0,84766.0,0.0003392]
[1741975646401,1.36390624,84767.0,84766.0,0.0003392]
[1741975646798,1.36090624,84767.0,84766.0,0.0003392]
[1741975647230,0.9798229,84767.0,84766.0,0.0003392]
[1741975647438,1.00616075,84767.0,84766.0,0.0003392]
[1741975648795,1.5176199,84767.0,84766.0,0.0003392]
[1741975649226,1.51170489,84767.0,84766.0,0.0003392]
[1741975649643,0.82658459,84767.0,84766.0,0.0121362]
[1741975649841,0.49369669,84767.0,84766.0,0.0121362]
[1741975650428,0.49369669,84767.0,84766.0,0.0003392]
[1741975650627,0.45843599,84767.0,84766.0,0.0003392]
[1741975651028,0.45443599,84767.0,84766.0,0.0003392]
[1741975651352,0.45443599,84767.0,84766.0,0.0013392]
[1741975651559,0.45443599,84767.0,84766.0,0.0131362]
[1741975652121,0.45443599,84767.0,84766.0,0.0013392]
[1741975652517,0.45443599,84767.0,84766.0,0.0023392]
[1741975652718,0.46623299,84767.0,84766.0,0.0023392]
[1741975652919,0.76623299,84767.0,84766.0,0.0023392]
[1741975654208,0.76623299,84767.0,84766.0,0.0013392]
[1741975654417,0.76723299,84767.0,84766.0,0.0013392]
[1741975654566,0.79137801,84767.0,84766.0,0.0003392]
[1741975655616,0.77958101,84767.0,84766.0,0.0003392]
[1741975655821,0.75543599,84767.0,84766.0,0.0003392]
[1741975657140,0.75443599,84767.0,84766.0,0.0003392]
[1741975657343,0.75543599,84767.0,84766.0,0.0003392]
[1741975657547,0.75543599,84767.0,84766.0,0.0121362]
[1741975657705,0.45543599,84767.0,84766.0,0.0121362]
[1741975658305,0.45543599,84767.0,84766.0,0.2362822]
[1741975658575,0.45443599,84767.0,84766.0,0.0003392]
[1741975658954,0.45443599,84767.0,84766.0,0.0013392]
[1741975659193,0.45443599,84767.0,84766.0,0.2372822]
[1741975659489,0.45443599,84767.0,84766.0,0.2490792]
[1741975659687,0.45443599,84767.0,84766.0,0.2382822]
[1741975660111,0.45443599,84767.0,84766.0,0.2372822]
[1741975660408,0.45443599,84767.0,84766.0,0.0013392]
[1741975660628,1.00217299,84767.0,84766.0,0.0013392]
[1741975660810,0.75443599,84767.0,84766.0,0.0013392]
[1741975661018,0.75443599,84767.0,84766.0,0.0003392]
[1741975661219,0.75443599,84767.0,84766.0,0.2362822]
[1741975662043,0.75543599,84767.0,84766.0,0.2362822]
[1741975662477,0.45543599,84767.0,84766.0,0.2362822]
[1741975662658,0.45543599,84767.0,84766.0,0.2480792]
[1741975663304,0.45543599,84767.0,84766.0,0.2362822]
[1741975663515,0.43693662,84767.0,84766.0,0.2362822]
[1741975663853,0.73693662,84767.0,84766.0,0.2362822]
[1741975664048,0.73693662,84767.0,84766.0,0.2480792]
[1741975664288,0.43693662,84767.0,84766.0,0.2480792]
[1741975664495,0.02303662,84767.0,84766.0,0.2480792]
[1741975664698,0.02303662,84767.0,84766.0,0.3779792]
[1741975665236,6.2e-07,84767.0,84766.0,0.3779792]
[1741975665710,6.2e-07,84767.0,84766.0,0.3789792]
[1741975666166,6.2e-07,84767.0,84766.0,0.3779792]
[1741975666369,0.0001696,84779.0,84778.0,0.23591]
[1741975666568,0.0001696,84779.0,84778.0,0.247705]
[1741975667970,0.0001696,84779.0,84778.0,0.249705]
[1741975669158,0.0001696,84779.0,84778.0,0.251705]
[1741975670836,0.5360766,84779.0,84778.0,0.004]
[1741975671044,0.5360766,84779.0,84766.0,0.0003392]
[1741975671045,0.011797,84767.0,84766.0,0.0003392]
[1741975671243,0.011798,84753.0,84740.0,0.0118]
[1741975671357,0.13219335,84750.0,84748.0,0.011799]
[1741975671564,0.535966,84758.0,84749.0,0.011799]
[1741975671817,0.011799,84747.0,84739.0,0.2363562]
[1741975672034,0.3,84741.0,84739.0,0.0003392]
[1741975672176,0.547816,84740.0,84739.0,0.0003392]
[1741975672551,0.3,84740.0,84739.0,0.0003392]
[1741975672748,0.536016,84740.0,84739.0,0.0003392]
[1741975672870,0.3,84740.0,84739.0,0.2481572]
[1741975673742,0.3,84740.0,84739.0,0.0013392]
[1741975673902,0.31309526,84740.0,84739.0,0.0013392]
[1741975674103,0.56091126,84740.0,84739.0,0.0013392]
[1741975674892,0.56091126,84740.0,84739.0,0.0003392]
[1741975675089,0.56191126,84740.0,84739.0,0.0003392]
[1741975675911,0.56091126,84740.0,84739.0,0.0003392]
[1741975676271,0.56591126,84740.0,84739.0,0.0003392]
[1741975676496,0.31809526,84740.0,84739.0,0.2481572]
[1741975676696,0.31309526,84740.0,84739.0,0.0003392]
[1741975676831,0.32489526,84740.0,84739.0,0.0003392]
[1741975677028,0.33089526,84740.0,84739.0,0.0003392]
[1741975677230,0.75933611,84740.0,84739.0,0.0003392]
[1741975677981,5.86986911,84740.0,84739.0,0.0003392]
[1741975678396,5.86686911,84740.0,84739.0,0.0003392]
[1741975678799,5.86386911,84740.0,84739.0,0.0003392]
[1741975678999,0.89273611,84740.0,84739.0,0.0003392]
[1741975679386,0.89473611,84740.0,84739.0,0.0003392]
[1741975679752,0.59473611,84740.0,84739.0,0.0003392]
[1741975679949,0.89473611,84740.0,84739.0,0.0003392]
[1741975680572,0.89673611,84740.0,84739.0,0.0003392]
[1741975683164,3.19413611,84740.0,84739.0,0.0003392]
[1741975683643,1.94323611,84740.0,84739.0,0.0003392]
[1741975683813,1.82223611,84740.0,84739.0,0.0003392]
[1741975685032,2.57187611,84740.0,84739.0,0.0003392]
[1741975685238,2.80789211,84740.0,84739.0,0.0003392]
[1741975685450,2.40749211,84740.0,84739.0,0.0003392]
[1741975686550,1.87121126,84740.0,84739.0,0.0003392]
[1741975687151,1.88575211,84740.0,84739.0,0.0003392]
[1741975687350,0.3,84722.0,84719.0,0.236074]
[1741975687574,0.536066,84722.0,84719.0,0.236074]
[1741975687782,0.3,84722.0,84720.0,0.236071]
[1741975688086,0.3,84722.0,84721.0,0.236068]
[1741975688315,0.3,84722.0,84721.0,0.247871]
[1741975688468,0.3,84723.0,84721.0,0.236068]
[1741975688672,0.3,84719.0,84716.0,0.236081]
[1741975689107,0.3,84719.0,84715.0,0.236084]
[1741975689438,0.3,84719.0,84713.0,0.011804]
[1741975689651,0.011803,84720.0,84715.0,0.236083]
[1741975689825,0.011804,84715.0,84710.0,0.0003392]
[1741975690061,0.5479,84711.0,84710.0,0.0003392]
[1741975691282,0.5479,84711.0,84710.0,0.00075428]
[1741975691582,0.3,84711.0,84710.0,0.24865728]
[1741975691856,0.3,84711.0,84710.0,0.23685328]
[1741975692635,0.3,84711.0,84710.0,0.23785328]
[1741975693063,0.302,84711.0,84710.0,0.24965728]
[1741975693259,0.3,84711.0,84710.0,0.24865728]
[1741975693499,0.302,84711.0,84710.0,0.24865728]
[1741975693673,0.303,84711.0,84710.0,0.23685328]
[1741975693875,0.303,84711.0,84710.0,0.00075428]
[1741975694087,0.5499,84711.0,84710.0,0.00075428]
[1741975695572,0.5479,84711.0,84710.0,0.00075428]
[1741975696159,0.3,84711.0,84710.0,0.23685328]
[1741975696561,0.302,84711.0,84710.0,0.23685328]
[1741975696757,0.304,84711.0,84710.0,0.23685328]
[1741975696986,0.302,84711.0,84710.0,0.23685328]